bitfinex-derivatives/quotes_SOLF0:USTF0_20251209
["timestamp","ask_amount","ask_price","bid_price","bid_amount"]
[1765238401111,3.41853357,133.21,133.16,0.05653784]
[1765238403712,3.41853357,133.21,133.17,105.1198]
[1765238403909,3.41853357,133.21,133.16,105.18123784]
[1765238404104,3.41853357,133.21,133.16,0.05653784]
[1765238404609,3.29,133.19,133.12,105.1528]
[1765238404805,3.29,133.17,133.1,210.3388]
[1765238405005,3.29,133.17,133.08,105.1863]
[1765238405211,3.29,133.15,133.08,105.1863]
[1765238405412,6.96687458,133.17,133.1,0.05696745]
[1765238405413,3.34312815,133.13,133.1,0.05696745]
[1765238405607,3.34312815,133.13,133.1,6.81796745]
[1765238407403,3.34312815,133.13,133.07,105.1972]
[1765238408007,3.34312815,133.13,133.1,6.7609]
[1765238408517,3.34312815,133.13,133.1,0.05140142]
[1765238408714,4.84312815,133.13,133.1,0.00140142]
[1765238409217,3.29,133.12,133.1,0.00140142]
[1765238410817,3.29,133.12,133.06,6.763]
[1765238410818,1.5,133.11,133.06,6.763]
[1765238411019,3.29,133.12,133.06,6.763]
[1765238411211,3.29,133.12,133.07,107.2986]
[1765238411415,3.29,133.12,133.07,105.1986]
[1765238411916,3.17,133.1,133.08,0.05780547]
[1765238412619,3.17,133.1,133.09,6.7614]
[1765238413823,3.17,133.1,133.08,0.05780547]
[1765238414018,3.17,133.09,133.06,6.763]
[1765238414418,3.17,133.09,133.07,111.9608]
[1765238415126,3.17,133.09,133.07,6.81717441]
[1765238415425,3.17,133.09,133.05,6.7635]
[1765238415825,3.17,133.09,133.05,3.13]
[1765238416231,3.17,133.09,133.06,6.7629]
[1765238416528,3.21793021,133.09,133.06,6.81674521]
[1765238422423,3.21793021,133.09,133.06,9.94674521]
[1765238422626,3.21793021,133.09,133.06,0.05384521]
[1765238423525,3.21793021,133.09,133.06,3.18384521]
[1765238424435,3.21793021,133.09,133.05,6.7634]
[1765238424436,3.33,133.02,132.92,3.13]
[1765238424628,3.33,133.02,132.91,105.3229]
[1765238424629,3.33,132.97,132.94,105.302]
[1765238424927,3.33,133.04,132.97,108.4069]
[1765238425432,3.38432024,133.02,132.99,0.05497385]
[1765238425626,3.3792429,133.02,132.99,3.18579557]
[1765238426333,3.3792429,133.02,133.0,6.766]
[1765238432032,3.3792429,133.02,132.99,67.08579557]
[1765238433628,3.3792429,133.02,132.99,73.85229557]
[1765238435034,3.3792429,133.02,133.0,6.766]
[1765238436534,0.0492429,133.02,133.01,3.13]
[1765238437340,3.33,133.09,133.04,108.351]
[1765238438038,3.33,133.09,133.04,105.221]
[1765238438233,3.33,133.07,133.05,0.05694015]
[1765238438433,3.33,133.07,133.05,6.82044015]
[1765238438633,3.33,133.07,133.05,112.03544015]
[1765238439039,0.05458185,133.08,133.07,6.7628]
[1765238439040,3.38458185,133.08,133.07,6.7628]
[1765238439333,0.05458185,133.08,133.07,6.7628]
[1765238441134,3.38458185,133.08,133.07,6.7628]
[1765238443936,3.38458185,133.08,133.05,0.05694015]
[1765238444530,3.33,133.06,133.05,0.05694015]
[1765238447340,8.9990873,133.06,133.05,0.05694015]
[1765238448240,9.00577323,133.06,133.05,0.05694015]
[1765238452644,3.35,133.05,133.01,6.7655]
[1765238452845,7.02145643,133.08,133.01,6.7655]
[1765238452846,3.35,133.03,133.01,6.7655]
[1765238453745,3.39889845,133.03,133.01,6.81509141]
[1765238458361,3.39889845,133.03,133.01,0.04959141]
[1765238458568,5.68413981,133.02,133.01,0.04959141]
[1765238458761,9.03413981,133.02,133.01,0.04959141]
[1765238459063,3.35,133.02,133.01,0.04959141]
[1765238460568,3.35,133.01,132.95,6.7685]
[1765238460767,0.04889845,133.03,132.95,6.7685]
[1765238460768,3.35,133.0,132.95,3.17]
[1765238460966,6.96687458,133.04,132.99,3.17]
[1765238461161,6.96687458,133.04,132.98,105.2663]
[1765238461162,5.68831287,133.03,133.01,9.9357]
[1765238461469,6.96687458,133.06,133.01,3.17]
[1765238461470,3.35,133.06,133.01,3.17]
[1765238461665,0.05069065,133.03,133.01,3.22749536]
[1765238461859,0.05069065,133.03,133.02,9.9351]
[1765238463866,3.35,133.08,133.05,3.17]
[1765238464068,5.69018027,133.07,133.05,3.17]
[1765238464266,5.69018027,133.06,133.05,3.17]
[1765238464567,5.69018027,133.06,133.05,9.9336]
[1765238464868,67.27,133.1,133.03,105.2277]
[1765238464869,0.05585241,133.07,133.06,3.17]
[1765238465068,5.74648318,133.07,133.06,3.17]
[1765238465268,5.74648318,133.07,133.06,9.9333]
[1765238465767,0.05585241,133.07,133.06,9.9333]
[1765238467667,3.38,133.12,133.09,3.11]
[1765238467971,9.07254486,133.11,133.09,3.11]
[1765238468171,3.38,133.11,133.09,3.11]
[1765238468568,3.43606291,133.11,133.09,3.16732628]
[1765238470874,3.43606291,133.11,133.09,0.05732628]
[1765238474175,0.05606291,133.11,133.09,3.16732628]
[1765238474981,0.05606291,133.11,133.1,3.11]
[1765238478590,5.67267183,133.16,133.12,3.36]
[1765238478873,3.07,133.18,133.12,3.36]
[1765238479072,6.92570784,133.2,133.12,3.36]
[1765238479073,8.74282662,133.17,133.12,3.36]
[1765238479268,3.07,133.17,133.12,3.36]
[1765238479772,0.04753153,133.16,133.14,3.36]
[1765238479980,0.04753153,133.16,133.14,10.119]
[1765238480175,0.04753153,133.16,133.14,3.36]
[1765238497095,5.60284989,133.21,133.15,3.36]
[1765238497390,3.07,133.22,133.15,3.36]
[1765238498191,3.12114108,133.2,133.18,3.36]
[1765238498393,3.12378902,133.2,133.18,3.40922554]
[1765238499297,0.05378902,133.2,133.18,3.40922554]
[1765238506485,0.05378902,133.2,133.19,3.36]
[1765238509488,3.4,133.19,133.15,3.07]
[1765238509691,9.03546858,133.18,133.15,3.07]
[1765238509889,3.4,133.18,133.15,3.07]
[1765238510498,3.4,133.18,133.15,3.12201325]
[1765238510798,0.05378902,133.2,133.15,3.12201325]
[1765238510999,0.05378902,133.2,133.16,3.07]
[1765238511392,0.05378902,133.2,133.19,3.07]
[1765238511597,3.4,133.24,133.2,3.07]
[1765238511795,3.4,133.22,133.18,3.07]
[1765238512498,0.05435407,133.21,133.19,0.05472745]
[1765238512700,0.05435407,133.21,133.19,3.12472745]
[1765238515200,3.45435407,133.21,133.19,3.12472745]
[1765238515904,0.05435407,133.21,133.19,3.12472745]
[1765238516100,3.45435407,133.21,133.19,0.05472745]
[1765238516310,9.04339483,133.2,133.19,0.05472745]
[1765238516603,3.4,133.19,133.15,3.07]
[1765238516803,9.04339483,133.18,133.15,3.07]
[1765238517007,3.4,133.21,133.15,3.07]
[1765238517207,3.4,133.19,133.15,3.07]
[1765238517507,5.69546398,133.18,133.16,3.12175015]
[1765238517806,0.05111345,133.18,133.16,3.12175015]
[1765238523705,0.05111345,133.18,133.17,3.28]
[1765238528210,3.25111345,133.18,133.16,122.33175015]
[1765238528406,3.25111345,133.18,133.16,119.05175015]
[1765238528611,3.25111345,133.18,133.16,122.33175015]
[1765238529510,3.25111345,133.18,133.16,3.33175015]
[1765238529711,0.05111345,133.18,133.16,3.33175015]
[1765238531501,3.25111345,133.18,133.16,3.33175015]
[1765238532102,5.69049612,133.17,133.16,0.05175015]
[1765238532505,8.89049612,133.17,133.16,0.05175015]
[1765238534211,5.69049612,133.17,133.16,0.05175015]
[1765238538819,5.69049612,133.17,133.16,3.43175015]
[1765238539625,0.05111345,133.18,133.17,3.38]
[1765238539916,3.29111345,133.18,133.16,0.05175015]
[1765238540113,3.24,133.14,133.08,3.38]
[1765238540321,3.24,133.12,133.08,3.38]
[1765238541110,0.05646453,133.11,133.1,3.38]
[1765238541616,3.24,133.16,133.1,3.38]
[1765238541814,3.24,133.16,133.11,3.38]
[1765238542009,6.7574,133.18,133.11,3.38]
[1765238542010,13.72817186,133.18,133.11,3.38]
[1765238542211,9.9974,133.18,133.11,3.38]
[1765238542405,16.96707186,133.2,133.14,3.38]
[1765238542610,0.04773456,133.18,133.17,3.38]
[1765238542815,0.04773456,133.18,133.16,0.05490217]
[1765238543316,0.04773456,133.18,133.16,3.43490217]
[1765238544022,3.28773456,133.18,133.16,0.05490217]
[1765238544913,10.04513456,133.18,133.16,0.05490217]
[1765238545119,10.04513456,133.18,133.03,3.38]
[1765238545120,3.24,133.11,133.03,3.38]
[1765238546215,0.05767402,133.08,133.06,3.42888529]
[1765238554637,105.152,133.13,133.06,3.42888529]
[1765238554638,16.95955491,133.14,133.06,3.42888529]
[1765238554931,5.63667111,133.13,133.07,3.38]
[1765238555135,5.63667111,133.12,133.07,3.38]
[1765238555326,9.9992,133.14,133.07,3.38]
[1765238555526,5.63841059,133.13,133.08,3.38]
[1765238555726,9.9992,133.14,133.09,3.43566179]
[1765238555727,5.69018255,133.12,133.09,3.43566179]
[1765238555937,3.29177196,133.12,133.09,3.43566179]
[1765238556231,3.29177196,133.12,133.09,0.05566179]
[1765238556435,3.24,133.1,133.09,0.05566179]
[1765238556627,8.88048803,133.1,133.09,0.05566179]
[1765238557330,5.64048803,133.1,133.09,3.43566179]
[1765238557534,3.29177196,133.12,133.09,3.43566179]
[1765238557942,5.6398186,133.11,133.09,0.05566179]
[1765238558144,3.29177196,133.12,133.09,0.05566179]
[1765238558335,8.88042364,133.11,133.09,0.05566179]
[1765238558534,3.24,133.11,133.09,0.05566179]
[1765238560343,3.29177196,133.12,133.09,3.43566179]
[1765238560539,5.64190588,133.11,133.09,3.43566179]
[1765238560744,0.05177196,133.12,133.09,3.43566179]
[1765238560941,0.05177196,133.12,133.1,3.38]
[1765238562448,0.05177196,133.12,133.11,3.38]
[1765238567342,0.05177196,133.12,133.11,122.38]
[1765238567549,5.64219406,133.16,133.13,3.38]
[1765238567749,5.64219406,133.15,133.13,3.38]
[1765238567948,3.24,133.17,133.13,3.38]
[1765238568251,5.64220208,133.16,133.13,3.38]
[1765238568548,5.64220208,133.15,133.13,3.42902658]
[1765238568749,3.3781439,133.16,133.13,3.42902658]
[1765238569049,5.64289598,133.15,133.13,3.42902658]
[1765238569355,3.3781439,133.16,133.13,3.42902658]
[1765238569561,5.64379505,133.15,133.13,3.42902658]
[1765238569852,3.3781439,133.16,133.13,3.42902658]
[1765238570042,5.64343899,133.15,133.13,3.42902658]
[1765238570240,0.0481439,133.16,133.13,3.42902658]
[1765238570445,5.64438979,133.15,133.13,3.42902658]
[1765238570650,0.0481439,133.16,133.13,3.42902658]
[1765238570849,5.64439276,133.15,133.13,3.42902658]
[1765238571052,0.0481439,133.16,133.13,3.42902658]
[1765238571255,5.64439276,133.15,133.13,3.42902658]
[1765238571450,3.3781439,133.16,133.13,3.42902658]
[1765238571659,5.6455758,133.15,133.13,3.42902658]
[1765238571956,3.3781439,133.16,133.13,3.42902658]
[1765238572257,5.6455758,133.15,133.13,3.42902658]
[1765238572553,3.13049353,133.16,133.13,3.42902658]
[1765238572756,5.6468232,133.15,133.13,3.42902658]
[1765238573049,3.13049353,133.16,133.13,3.42902658]
[1765238573256,8.65502142,133.19,133.14,3.13]
[1765238573456,10.92020546,133.18,133.14,3.13]
[1765238573656,5.70312543,133.17,133.14,3.13]
[1765238573859,5.64823638,133.16,133.14,3.13]
[1765238574060,0.05488905,133.17,133.14,3.13]
[1765238574258,5.64823995,133.16,133.14,3.13]
[1765238574454,5.64823995,133.15,133.14,3.13]
[1765238575856,3.38488905,133.17,133.14,3.13]
[1765238576057,5.65503497,133.16,133.14,3.13]
[1765238576257,3.38488905,133.17,133.14,3.13]
[1765238576462,5.65653657,133.16,133.14,3.13]
[1765238576758,3.38488905,133.17,133.14,3.13]
[1765238577062,5.65580028,133.16,133.14,3.13]
[1765238577258,3.38488905,133.17,133.14,3.13]
[1765238577461,5.65590977,133.16,133.14,3.13]
[1765238577765,3.38488905,133.17,133.14,3.13]
[1765238578057,5.62932272,133.16,133.14,3.13]
[1765238578261,0.05488905,133.17,133.14,3.13]
[1765238578460,5.62961616,133.16,133.14,3.13]
[1765238578762,3.38488905,133.17,133.13,3.17902658]
[1765238578964,3.33,133.15,133.13,3.17902658]
[1765238581761,3.29,133.16,133.13,3.17902658]
[1765238581965,3.34488905,133.17,133.14,3.37]
[1765238582268,5.63144066,133.16,133.14,3.37]
[1765238582461,3.34488905,133.17,133.14,3.37]
[1765238582660,5.63186143,133.16,133.14,3.37]
[1765238582854,3.34488905,133.17,133.14,3.37]
[1765238583062,3.29,133.15,133.13,122.41902658]
[1765238584067,0.05488905,133.17,133.13,122.41902658]
[1765238584268,8.92187789,133.16,133.13,122.41902658]
[1765238584462,3.29,133.16,133.13,122.41902658]
[1765238585869,3.29,133.16,133.14,3.37]
[1765238586065,6.81268905,133.17,133.05,118.7381]
[1765238586066,3.29,133.14,133.08,3.37]
[1765238586274,3.29,133.12,133.08,3.37]
[1765238586667,3.29,133.1,133.07,63.86]
[1765238586867,3.29,133.1,133.07,67.23]
[1765238587067,3.33940846,133.1,133.08,3.37]
[1765238587470,0.04940846,133.1,133.08,3.37]
[1765238591868,0.04940846,133.1,133.09,3.37]
[1765238593477,6.7594,133.14,133.09,3.37]
[1765238593677,5.6349872,133.13,133.1,3.37]
[1765238593975,5.6349872,133.12,133.1,3.37]
[1765238594178,10.0494,133.14,133.1,3.37]
[1765238594479,5.68284667,133.13,133.11,3.42716472]
[1765238594676,5.63457733,133.12,133.11,3.42716472]
[1765238595377,0.04826934,133.13,133.11,3.42716472]
[1765238596272,5.63578517,133.12,133.11,3.42716472]
[1765238596778,8.92578517,133.12,133.11,0.05716472]
[1765238597372,5.63578517,133.12,133.11,0.05716472]
[1765238597971,5.63578517,133.12,133.11,3.42716472]
[1765238605086,5.63578517,133.12,133.11,0.05716472]
[1765238608899,8.96578517,133.12,133.11,0.05716472]
[1765238610294,3.33,133.11,133.07,122.15]
[1765238610495,3.33,133.09,133.07,122.15]
[1765238610999,3.33,133.1,133.08,3.15]
[1765238611300,5.63359959,133.09,133.08,3.20718686]
[1765238611986,8.96359959,133.09,133.08,0.05718686]
[1765238612801,14.20254905,133.09,133.08,0.05718686]
[1765238612998,3.33,133.08,133.04,3.15]
[1765238613193,3.33,133.06,133.04,3.15]
[1765238613688,6.97266982,133.09,133.04,3.15]
[1765238613892,3.33,133.07,133.04,3.15]
[1765238614197,3.33,133.05,133.04,0.0529158]
[1765238614398,8.95637739,133.05,133.04,0.0529158]
[1765238614599,14.18952684,133.05,133.04,0.0529158]
[1765238614794,14.18952684,133.05,133.04,0.0029158]
[1765238614997,3.33,133.04,132.96,9.9182]
[1765238615204,3.33,133.02,132.96,67.03]
[1765238615405,3.33,133.02,132.97,3.15]
[1765238615803,8.94367274,133.01,132.97,3.15]
[1765238616007,0.05642852,133.01,132.99,3.15]
[1765238618009,0.05642852,133.01,132.99,4.84466651]
[1765238618306,0.05642852,133.01,133.0,67.05]
[1765238621411,0.05642852,133.01,133.0,186.05]
[1765238623605,3.33,133.06,133.01,3.15]
[1765238623806,3.33,133.06,133.02,3.15]
[1765238624510,0.05748741,133.05,133.03,0.05633505]
[1765238624703,3.38748741,133.05,133.03,0.05633505]
[1765238628710,3.19,133.04,133.03,0.05633505]
[1765238628910,3.24748741,133.05,133.03,0.05633505]
[1765238629908,3.19,133.03,132.98,119.0]
[1765238630208,5.59828333,133.04,132.95,3.13]
[1765238630209,3.19,133.01,132.96,3.13]
[1765238630406,3.19,133.01,132.97,3.13]
[1765238630800,0.0473701,133.0,132.98,3.18207957]
[1765238633909,0.0473701,133.0,132.99,3.13]
[1765238637103,3.19,133.04,133.0,3.13]
[1765238637812,3.19,133.04,133.01,3.13]
[1765238638112,3.24286289,133.04,133.01,3.18389289]
[1765238639314,3.24286289,133.04,133.02,3.13]
[1765238639315,0.05286289,133.04,133.02,3.13]
[1765238639609,3.24286289,133.04,133.02,3.13]
[1765238639910,0.05286289,133.04,133.02,9.8952]
[1765238640111,0.05286289,133.04,133.03,3.13]
[1765238641614,0.05286289,133.04,133.02,9.8952]
[1765238643104,0.05286289,133.04,133.03,3.13]
[1765238644017,3.34,133.09,133.05,3.13]
[1765238644218,15.5243272,133.12,133.05,3.13]
[1765238644415,5.63685416,133.11,133.05,3.13]
[1765238644618,3.34,133.12,133.05,3.13]
[1765238645019,0.05029423,133.1,133.08,3.13]
[1765238651121,0.05029423,133.1,133.09,3.13]
[1765238657526,3.39029423,133.1,133.08,119.0]
[1765238657712,3.39029423,133.1,133.07,63.95307229]
[1765238657921,3.34,133.08,133.07,0.05307229]
[1765238658123,3.34,133.07,133.03,67.03]
[1765238658721,3.34,133.07,133.04,3.14]
[1765238659024,3.34,133.07,133.04,0.05726295]
[1765238659224,3.09,133.05,133.04,0.05726295]
[1765238659525,3.09,133.04,132.98,67.04]
[1765238659735,3.09,133.02,132.99,3.14]
[1765238660229,3.09,133.02,132.95,3.14]
[1765238660424,3.14717324,133.0,132.97,3.18852834]
[1765238660620,0.05717324,133.0,132.97,3.18852834]
[1765238667534,0.05717324,133.0,132.97,9.95612834]
[1765238667732,0.05717324,133.0,132.98,3.14]
[1765238672030,0.05717324,133.0,132.98,122.14]
[1765238672344,0.05717324,133.0,132.99,3.14]
[1765238677848,0.05717324,133.0,132.99,122.14]
[1765238684537,5.19684384,133.06,133.01,3.14]
[1765238684846,15.42264326,133.07,133.01,3.14]
[1765238684847,8.76568162,133.05,133.02,3.14]
[1765238685042,3.09,133.05,133.02,3.14]
[1765238685639,3.14395705,133.05,133.02,3.19673441]
[1765238691447,3.14395705,133.05,133.02,0.05673441]
[1765238691649,8.81967759,133.04,133.02,0.05673441]
[1765238691848,0.05395705,133.05,133.02,3.31673441]
[1765238692146,3.19395705,133.05,133.02,3.31673441]
[1765238696152,5.6857453,133.04,133.02,3.31673441]
[1765238696353,3.19395705,133.05,133.02,3.31673441]
[1765238696555,5.68729541,133.04,133.02,3.31673441]
[1765238696747,3.19395705,133.05,133.02,3.31673441]
[1765238696948,5.6881975,133.04,133.02,3.31673441]
[1765238697153,3.19395705,133.05,133.02,3.31673441]
[1765238697453,5.6910433,133.04,133.02,3.31673441]
[1765238697652,0.05395705,133.05,133.02,3.31673441]
[1765238698057,0.05395705,133.05,133.04,3.26]
[1765238698553,3.19395705,133.05,133.03,3.26]
[1765238701361,5.69002158,133.04,133.03,3.26]
[1765238701544,0.05395705,133.05,133.03,3.26]
[1765238702044,0.05395705,133.05,133.04,3.09]
[1765238702249,0.05395705,133.05,133.04,186.01]
[1765238703353,0.05395705,133.05,133.04,67.01]
[1765238706459,3.21,133.09,133.06,3.09]
[1765238706760,5.69798095,133.08,133.07,3.09]
[1765238707161,3.21,133.12,133.08,3.09]
[1765238707456,5.75426329,133.11,133.09,3.14642731]
[1765238707654,5.70283003,133.1,133.09,3.14642731]
[1765238707961,8.91283003,133.1,133.09,0.05642731]
[1765238709363,5.70283003,133.1,133.09,3.14642731]
[1765238709563,3.26143326,133.11,133.09,3.14642731]
[1765238710958,0.05143326,133.11,133.09,3.14642731]
[1765238713155,3.26143326,133.11,133.09,0.05642731]
[1765238714268,3.21,133.09,133.06,119.0]
[1765238714468,3.21,133.07,133.04,3.09]
[1765238715160,3.21,133.09,133.04,3.09]
[1765238715364,8.95163889,133.08,133.05,3.1396533]
[1765238715567,3.26109495,133.08,133.05,3.1396533]
[1765238715768,0.05109495,133.08,133.06,3.09]
[1765238715960,0.05109495,133.08,133.07,4.78744718]
[1765238716366,0.05109495,133.08,133.07,123.78744718]
[1765238722574,3.21,133.13,133.08,3.37]
[1765238722874,6.96209608,133.14,133.1,3.37]
[1765238722875,3.33,133.14,133.1,3.37]
[1765238723172,3.33,133.14,133.09,65.59744718]
[1765238723173,3.33,133.16,133.13,5.06744718]
[1765238723675,3.38247325,133.16,133.13,5.12309435]
[1765238724069,3.38247325,133.16,133.14,3.37]
[1765238724377,3.38247325,133.16,133.13,3.42564717]
[1765238725681,3.38247325,133.16,133.14,3.37]
[1765238725868,3.38247325,133.16,133.13,10.18514717]
[1765238727872,3.38247325,133.16,133.13,0.05564717]
[1765238728078,0.05247325,133.16,133.14,3.37]
[1765238731380,0.05247325,133.16,133.14,122.37]
[1765238731584,0.05247325,133.16,133.15,5.06744718]
[1765238731774,0.05247325,133.16,133.15,68.94744718]
[1765238732083,3.33,133.2,133.16,3.37]
[1765238732388,3.33,133.2,133.17,3.37]
[1765238732578,3.33,133.2,133.17,5.06744718]
[1765238732971,3.38252831,133.2,133.17,5.1213456]
[1765238737285,3.38252831,133.2,133.18,3.37]
[1765238738290,0.05252831,133.2,133.18,3.37]
[1765238738489,0.05252831,133.2,133.19,5.06744718]
[1765238738685,8.97609864,133.23,133.2,3.37]
[1765238738884,3.33,133.24,133.2,3.37]
[1765238739087,5.6460983,133.23,133.2,3.37]
[1765238739292,3.33,133.24,133.21,3.37]
[1765238739489,5.64525978,133.23,133.21,3.37]
[1765238739789,0.05499923,133.23,133.21,3.42365677]
[1765238740086,0.05499923,133.23,133.21,5.12110395]
[1765238740683,0.05499923,133.23,133.22,3.37]
[1765238741078,0.05499923,133.23,133.21,10.17915677]
[1765238741388,0.05499923,133.23,133.22,3.37]
[1765238746093,0.05499923,133.23,133.22,122.37]
[1765238749192,0.05499923,133.23,133.22,3.37]
[1765238752688,8.8447997,133.23,133.21,0.05365677]
[1765238752891,3.20499923,133.23,133.21,0.05365677]
[1765238757086,8.79212273,133.22,133.21,0.05365677]
[1765238759697,3.15,133.22,133.21,0.05365677]
[1765238759997,8.80487164,133.22,133.21,0.05365677]
[1765238760792,3.15,133.21,133.16,6.7579]
[1765238760997,3.26,133.18,133.13,3.36]
[1765238761189,3.26,133.16,133.13,3.36]
[1765238761388,3.26,133.16,133.1,3.36]
[1765238761591,3.26,133.14,133.1,3.36]
[1765238761999,3.26,133.12,133.11,0.05577254]
[1765238762206,0.04853423,133.13,133.11,3.41577254]
[1765238762797,0.04853423,133.13,133.11,10.17627254]
[1765238762994,0.04853423,133.13,133.12,3.36]
[1765238764303,0.04853423,133.13,133.11,10.17627254]
[1765238765099,3.30853423,133.13,133.11,0.05577254]
[1765238765401,8.93058406,133.12,133.11,0.05577254]
[1765238768707,8.93058406,133.12,133.05,2.64303104]
[1765238768708,3.26,133.11,133.03,224.2274]
[1765238769006,8.92989665,133.1,133.04,3.36]
[1765238769310,3.26,133.1,133.04,3.36]
[1765238769499,3.26,133.08,133.05,10.1236]
[1765238769801,3.31549736,133.08,133.05,10.17753365]
[1765238770003,0.05549736,133.08,133.06,3.36]
[1765238776810,5.64770449,133.13,133.08,3.36]
[1765238777133,5.64770449,133.13,133.09,3.36]
[1765238777134,3.26,133.13,133.09,3.36]
[1765238777824,0.05196274,133.12,133.1,3.4074459]
[1765238780719,3.35196274,133.12,133.1,0.0474459]
[1765238782610,0.05196274,133.12,133.11,3.15]
[1765238785821,0.05196274,133.12,133.1,182.9274459]
[1765238786025,0.05196274,133.12,133.1,186.0774459]
[1765238786424,0.05196274,133.12,133.1,122.1974459]
[1765238787333,0.05196274,133.12,133.11,3.15]
[1765238789720,3.3,133.16,133.11,3.15]
[1765238789924,3.3,133.16,133.12,3.15]
[1765238790617,0.04940095,133.15,133.13,3.19942344]
[1765238793635,0.04940095,133.15,133.13,122.19942344]
[1765238793936,0.04940095,133.15,133.14,3.15]
[1765238798243,5.76056584,133.15,133.14,3.15]
[1765238798646,0.04940095,133.15,133.14,3.15]
[1765238799234,5.76109085,133.15,133.14,3.15]
[1765238799437,10.26209608,133.2,133.16,3.15]
[1765238799640,3.3,133.2,133.16,3.15]
[1765238800342,0.05189195,133.19,133.17,3.20234906]
[1765238800845,3.35189195,133.19,133.17,3.20234906]
[1765238801934,0.05189195,133.19,133.17,3.20234906]
[1765238809641,0.05189195,133.19,133.18,4.98311288]
[1765238810239,8.40460389,133.24,133.19,3.29]
[1765238810648,3.11,133.23,133.19,3.29]
[1765238811149,0.05278614,133.22,133.21,3.29]
[1765238811335,5.75336191,133.22,133.21,3.29]
[1765238812145,0.05278614,133.22,133.2,3.34553245]
[1765238812344,3.16278614,133.22,133.2,0.05553245]
[1765238812546,8.80822544,133.21,133.2,0.05553245]
[1765238820260,3.11,133.2,133.15,3.29]
[1765238820448,3.11,133.18,133.15,3.29]
[1765238821254,3.16504073,133.18,133.15,3.34184558]
[1765238822653,3.16504073,133.18,133.15,0.05184558]
[1765238822855,8.96748817,133.17,133.15,0.05184558]
[1765238823049,3.28,133.17,133.15,0.05184558]
[1765238825057,3.28,133.16,133.11,63.84]
[1765238825263,3.28,133.14,133.11,3.15]
[1765238825961,8.97157915,133.13,133.1,3.15]
[1765238826156,3.33009025,133.13,133.1,3.19800871]
[1765238826355,0.05009025,133.13,133.1,3.19800871]
[1765238830663,0.05009025,133.13,133.12,3.15]
[1765238839772,3.33,133.1,133.04,3.15]
[1765238839974,9.02579235,133.09,133.05,3.15]
[1765238840167,5.69794394,133.08,133.05,3.15]
[1765238840369,3.33,133.09,133.05,3.15]
[1765238840566,3.37983231,133.08,133.06,0.05268612]
[1765238841064,3.37983231,133.08,133.06,3.20268612]
[1765238843064,3.37983231,133.08,133.06,0.05268612]
[1765238845170,9.01222385,133.07,133.06,0.05268612]
[1765238845774,3.33,133.06,133.03,3.15]
[1765238846673,3.33,133.06,133.03,0.05519905]
[1765238849676,3.33,133.04,133.02,1.69311288]
[1765238849880,3.33,133.05,133.02,4.84311288]
[1765238850183,3.33,133.08,133.04,1.69311288]
[1765238850474,3.33,133.08,133.05,3.15]
[1765238850670,0.05565434,133.08,133.06,4.84311288]
[1765238850869,0.05565434,133.08,133.07,3.15]
[1765238855781,5.65635444,133.15,133.09,3.15]
[1765238856090,3.33,133.15,133.12,3.15]
[1765238856780,3.37803534,133.15,133.12,3.20667992]
[1765238858887,0.04803534,133.15,133.14,3.15]
[1765238859484,5.66091864,133.19,133.14,3.15]
[1765238859787,3.33,133.2,133.16,4.84311288]
[1765238860089,3.33,133.18,133.16,1.69311288]
[1765238860292,3.33,133.18,133.14,3.15]
[1765238860489,0.05191636,133.17,133.15,3.20489888]
[1765238860685,0.05191636,133.17,133.15,4.89801176]
[1765238860886,0.05191636,133.17,133.16,3.15]
[1765238861486,0.05191636,133.17,133.15,4.89801176]
[1765238861690,0.05191636,133.17,133.16,3.15]
[1765238864691,0.05191636,133.17,133.15,3.20489888]
[1765238866892,3.38191636,133.17,133.15,0.05489888]